bitfinex/quotes_ETHUSD_20250810
["timestamp","ask_amount","ask_price","bid_price","bid_amount"]
[1754797250301,2.20972797,4232.2,4231.9,3.55]
[1754797250490,0.4376,4232.2,4231.9,3.55]
[1754797250691,2.20977428,4232.1,4232.0,6.977]
[1754797250877,2.20977428,4232.1,4232.0,6.976]
[1754797251078,1.77213481,4232.2,4232.0,6.976]
[1754797251385,1.77208609,4232.3,4232.0,6.976]
[1754797251584,1.89044536,4232.4,4232.0,6.976]
[1754797251789,1.77190933,4232.8,4232.1,0.55]
[1754797251973,0.4376,4232.9,4232.2,3.975]
[1754797252178,1.8903667,4232.6,4232.2,3.975]
[1754797252391,1.77207664,4232.4,4232.2,3.975]
[1754797252800,2.20961021,4232.5,4232.3,0.55]
[1754797252999,1.77188542,4232.8,4232.3,0.6684]
[1754797253426,1.77199363,4232.6,4232.3,0.6684]
[1754797253787,0.1184,4232.9,4232.3,0.6684]
[1754797254110,1.77204423,4232.4,4232.3,0.6684]
[1754797254290,1.77196703,4232.6,4232.3,4.6424]
[1754797254689,1.77196346,4232.6,4232.3,4.6424]
[1754797254913,1.77171223,4233.2,4232.6,0.55]
[1754797255116,0.1184,4233.4,4232.8,3.6684]
[1754797255481,0.1184,4233.4,4232.8,5.4402755]
[1754797255687,0.1184,4233.4,4232.9,0.55]
[1754797256022,1.89003244,4233.4,4233.0,3.972]
[1754797256197,0.1184,4233.4,4233.0,3.972]
[1754797256590,1.89003792,4233.4,4233.0,3.972]
[1754797257301,1.77169692,4233.3,4233.0,3.972]
[1754797258115,0.1184,4233.4,4233.0,3.972]
[1754797258116,1.89003337,4233.4,4233.0,3.972]
[1754797258513,1.77167454,4233.3,4233.0,3.972]
[1754797258688,0.1184,4233.4,4233.0,3.97]
[1754797258689,1.77177333,4233.1,4233.0,3.97]
[1754797258883,2.20937333,4233.1,4233.0,3.97]
[1754797259105,0.4376,4233.1,4233.0,3.97]
[1754797259418,1.77167706,4233.3,4233.0,3.97]
[1754797259587,1.77175119,4233.1,4233.0,3.97]
[1754797259795,1.77166749,4233.3,4233.0,3.97]
[1754797260000,1.77171494,4233.2,4233.0,3.97]
[1754797260330,1.77175119,4233.1,4233.0,3.97]
[1754797260526,2.20935119,4233.1,4233.0,3.97]
[1754797260727,0.4376,4233.1,4232.8,0.1184]
[1754797261025,2.20935786,4233.1,4232.9,3.969]
[1754797261519,0.4376,4233.1,4232.8,0.1184]
[1754797261721,1.89002606,4233.4,4232.8,0.1184]
[1754797261722,1.77167229,4233.3,4232.9,3.968]
[1754797262235,1.77171829,4233.2,4232.9,3.968]
[1754797262531,1.77175604,4233.1,4233.0,3.967]
[1754797262929,1.77175604,4233.1,4232.8,0.1184]
[1754797262930,1.77183491,4232.9,4232.8,0.1184]
[1754797263129,1.77183491,4232.9,4232.8,4.0844]
[1754797263536,2.20943491,4232.9,4232.8,3.966]
[1754797263731,2.32783491,4232.9,4232.8,3.965]
[1754797264034,1.77188879,4232.8,4232.4,0.55]
[1754797264230,2.32784842,4232.9,4232.5,3.965]
[1754797264437,0.1184,4232.9,4232.6,3.965]
[1754797264637,0.1184,4233.2,4232.7,1.4834]
[1754797264930,0.1184,4233.2,4232.8,4.8974]
[1754797265438,0.1184,4233.2,4232.8,4.4018]
[1754797265731,0.1184,4233.2,4232.9,0.4956]
[1754797265941,0.1184,4233.2,4233.0,0.4956]
[1754797266538,0.1184,4233.2,4232.7,0.55]
[1754797266718,2.20935119,4233.1,4233.0,3.964]
[1754797267324,1.77188681,4232.8,4232.6,0.1184]
[1754797267644,1.77184363,4232.9,4232.7,3.962]
[1754797268057,1.77190405,4232.8,4232.6,0.1184]
[1754797268260,1.7718414,4232.9,4232.8,3.961]
[1754797268558,1.77183491,4232.9,4232.8,3.961]
[1754797268715,1.89023491,4232.9,4232.8,3.961]
[1754797271015,1.7719311,4232.7,4232.3,1.0456]
[1754797271247,1.7719311,4232.7,4232.4,4.4546]
[1754797271448,1.77188592,4232.8,4232.5,3.0]
[1754797271674,1.77192106,4232.7,4232.5,3.0]
[1754797271962,1.77200236,4232.5,4231.8,3.55]
[1754797272163,1.77200236,4232.5,4232.0,3.55]
[1754797272325,1.77205486,4232.4,4232.0,3.55]
[1754797272526,1.77200826,4232.5,4232.0,4.0456]
[1754797272856,1.77207292,4232.4,4232.0,4.0456]
[1754797273324,1.77209257,4232.3,4232.0,4.0456]
[1754797273823,1.77209257,4232.3,4232.0,3.55]
[1754797274029,0.556,4232.6,4232.0,3.55]
[1754797274363,2.32796826,4232.6,4232.0,3.55]
[1754797274565,1.77208211,4232.4,4232.0,3.55]
[1754797274786,1.77208211,4232.4,4232.0,1.0456]
[1754797274991,1.77208211,4232.4,4232.2,3.0]
[1754797275278,1.77216143,4232.2,4231.9,0.1184]
[1754797275573,1.77216984,4232.1,4232.0,3.955]
[1754797275957,1.77216984,4232.1,4231.7,0.551]
[1754797276160,1.77221915,4232.0,4231.8,3.955]
[1754797276676,1.77229547,4231.8,4231.7,0.001]
[1754797276851,1.89069547,4231.8,4231.7,0.001]
[1754797277680,2.35109547,4231.8,4231.7,0.001]
[1754797280461,2.51149547,4231.8,4231.7,0.001]
[1754797281684,1.77246301,4231.4,4231.3,0.001]
[1754797281996,1.89086301,4231.4,4231.3,1e-08]
[1754797282286,6.46166301,4231.4,4231.3,1e-08]
[1754797282898,1.77246301,4231.4,4231.3,1e-08]
[1754797283060,2.23286301,4231.4,4231.3,1e-08]
[1754797285381,1.77246301,4231.4,4231.3,1e-08]
[1754797285586,1.77206229,4232.4,4231.3,1e-08]
[1754797285587,5.71906736,4232.4,4231.3,0.95090001]
[1754797285882,0.1604,4233.0,4231.3,0.95090001]
[1754797285883,5.7188907,4232.8,4231.4,0.9509]
[1754797286085,5.7188907,4232.8,4231.5,0.9509]
[1754797286388,1.77217582,4232.1,4231.6,1.039]
[1754797286574,1.77220086,4232.1,4231.6,1.039]
[1754797286778,1.77220086,4232.1,4231.7,0.9509]
[1754797286979,1.77184774,4232.9,4232.0,0.55]
[1754797287293,0.002,4233.5,4232.1,4.5009]
[1754797287453,0.002,4233.5,4232.2,0.55]
[1754797287655,1.7720036,4232.5,4232.2,0.489]
[1754797287903,1.77221422,4232.0,4231.7,3.0]
[1754797288189,0.4604,4232.5,4231.5,3.0]
[1754797288354,1.77234182,4231.7,4231.5,0.489]
[1754797288851,1.77224319,4232.0,4231.5,0.489]
[1754797289080,1.77224319,4232.0,4231.3,3.46190001]
[1754797289285,1.77226182,4231.9,4231.5,3.0]
[1754797289589,1.77230347,4231.8,4231.5,3.489]
[1754797289795,1.77226307,4231.9,4231.5,3.489]
[1754797290185,1.77237924,4231.6,4231.5,0.489]
[1754797290387,1.77246301,4231.4,4231.3,1e-08]
[1754797291286,2.23286301,4231.4,4231.3,1e-08]
[1754797292974,2.35126301,4231.4,4231.3,1e-08]
[1754797295094,1.89086301,4231.4,4231.3,1e-08]
[1754797295473,2.35126301,4231.4,4231.3,1e-08]
[1754797296586,2.51166301,4231.4,4231.3,1e-08]
[1754797297607,2.35126301,4231.4,4231.3,1e-08]
[1754797298885,1.89086301,4231.4,4231.3,1e-08]
[1754797299681,1.89086301,4231.4,4231.3,0.48900001]
[1754797300023,1.89086301,4231.4,4231.3,0.95090001]
[1754797300887,1.89086301,4231.4,4231.3,0.48900001]
[1754797302790,2.35126301,4231.4,4231.3,1e-08]
[1754797304117,0.1184,4231.4,4231.3,1e-08]
[1754797304280,2.60612723,4233.4,4231.3,0.95090001]
[1754797304281,0.4604,4232.7,4231.3,0.95090001]
[1754797304487,1.77233227,4231.8,4231.4,0.489]
[1754797304682,1.77233227,4231.8,4231.5,0.4619]
[1754797305013,1.77238226,4231.6,4231.3,1e-08]
[1754797305185,2.23244814,4232.4,4231.4,0.489]
[1754797305386,1.77236983,4231.7,4231.4,0.489]
[1754797305606,1.77230195,4231.8,4231.5,0.489]
[1754797305808,0.4604,4233.0,4231.6,0.4619]
[1754797306025,0.002,4233.2,4232.1,0.55]
[1754797306313,0.002,4233.2,4232.6,0.55]
[1754797306813,0.002,4233.2,4232.8,0.55]
[1754797307317,0.002,4233.2,4232.7,0.55]
[1754797307515,0.002,4233.2,4232.9,0.8955]
[1754797307888,0.002,4233.2,4232.7,0.55]
[1754797307889,0.002,4233.2,4233.0,0.8955]
[1754797308285,1.77370934,4233.2,4233.1,0.4643]
[1754797308885,0.002,4233.2,4233.1,0.8955]
[1754797311389,1.77370934,4233.2,4233.1,0.4643]
[1754797311584,0.002,4233.2,4233.1,0.4643]
[1754797311897,1.77370934,4233.2,4233.1,0.8955]
[1754797313919,0.002,4233.2,4233.1,0.4643]
[1754797315100,0.002,4233.2,4233.1,0.8955]
[1754797315504,0.002,4233.2,4233.1,3.21725119]
[1754797315811,0.002,4233.2,4233.1,1.4455]
[1754797316400,0.002,4233.2,4233.1,3.21725119]
[1754797316596,0.002,4233.2,4233.1,1.4455]
[1754797317205,0.002,4233.2,4233.1,5.3665]
[1754797318494,0.002,4233.2,4233.1,4.3853]
[1754797318809,0.002,4233.2,4233.1,0.4643]
[1754797319189,0.002,4233.2,4232.7,0.55]
[1754797319391,1.77179675,4233.0,4232.7,0.55]
[1754797319599,1.77195237,4232.7,4232.1,0.4312]
[1754797319799,1.77187677,4232.8,4232.2,4.3833]
[1754797320001,1.77194822,4232.7,4232.2,4.3833]
[1754797320220,0.002,4233.2,4232.3,3.4643]
[1754797320406,0.4671,4233.2,4232.3,3.4643]
[1754797320606,1.77196879,4232.6,4232.3,3.4643]
[1754797320810,1.77188329,4232.8,4232.2,0.4312]
[1754797321040,1.77187187,4232.9,4232.3,3.918]
[1754797321319,0.4671,4233.2,4232.3,3.918]
[1754797321320,0.002,4233.2,4232.4,0.55]
[1754797321523,1.77175887,4233.1,4232.6,0.55]
[1754797321727,0.002,4233.2,4232.5,0.55]
[1754797321929,0.002,4233.2,4232.8,0.55]
[1754797322147,0.002,4233.2,4232.8,4.467]
[1754797322427,0.002,4233.2,4232.9,0.8955]
[1754797322732,0.002,4233.2,4232.9,3.8955]
[1754797322918,0.002,4233.2,4232.9,3.0]
[1754797323120,0.002,4233.2,4232.8,4.467]
[1754797323121,1.77180353,4233.0,4232.0,1.77217335]
[1754797323323,1.77371796,4233.2,4232.7,0.55]
[1754797323492,0.002,4233.2,4232.8,4.8115]
[1754797323698,0.002,4233.2,4232.4,0.4312]
[1754797323699,1.77179305,4233.0,4232.4,0.4312]
[1754797323905,1.77179305,4233.0,4232.6,0.4643]
[1754797324215,0.002,4233.2,4232.7,1.4455]
[1754797324402,0.002,4233.2,4232.7,0.55]
[1754797324609,0.002,4233.2,4232.8,0.8955]
[1754797324992,1.77179168,4233.1,4232.9,0.8955]
[1754797325196,1.77179168,4233.1,4233.0,4.3793]
[1754797327012,1.77371316,4233.2,4233.0,0.4643]
[1754797327216,1.77371316,4233.2,4233.1,3.914]
[1754797327420,1.77371316,4233.2,4233.1,4.3773]
[1754797327637,1.77371316,4233.2,4233.1,0.4643]
[1754797328346,0.002,4233.2,4233.1,0.4643]
[1754797328642,0.002,4233.2,4233.1,4.3763]
[1754797328853,0.002,4233.2,4233.1,4.9263]
[1754797329025,0.002,4233.2,4233.1,5.3575]
[1754797330426,0.002,4233.2,4233.1,10.12925119]
[1754797330810,0.002,4233.2,4233.1,4.4455]
[1754797331010,0.002,4233.2,4233.1,8.3555]
[1754797331637,0.002,4233.2,4233.1,10.12725119]
[1754797333141,0.002,4233.2,4233.1,7.9243]
[1754797333557,0.002,4233.2,4233.1,9.69605119]
[1754797333725,0.002,4233.2,4233.1,10.12725119]
[1754797336222,0.002,4233.2,4233.1,7.9213]
[1754797336756,0.002,4233.2,4233.1,3.55]
[1754797336941,1.77370934,4233.2,4233.1,3.55]
[1754797337253,0.002,4233.2,4233.1,7.456]
[1754797338346,0.002,4233.2,4233.1,7.9387]
[1754797338577,0.002,4233.2,4233.1,8.3878]
[1754797338758,0.002,4233.2,4233.1,10.15955119]
[1754797342047,0.002,4233.2,4233.1,6.25355119]
[1754797342252,0.002,4233.2,4233.1,7.9347]
[1754797342630,0.002,4233.2,4233.1,7.452]
[1754797342829,0.002,4233.2,4233.1,3.55]
[1754797343031,0.002,4233.2,4233.1,10.15455119]
[1754797343431,0.002,4233.2,4233.1,4.0327]
[1754797343759,0.002,4233.2,4233.1,6.9]
[1754797344260,0.002,4233.2,4233.1,7.45]
[1754797345065,0.002,4233.2,4233.1,9.70445119]
[1754797345379,0.002,4233.2,4233.1,7.9327]
[1754797345742,0.002,4233.2,4233.1,9.70445119]
[1754797347446,0.002,4233.2,4233.1,10.15355119]
[1754797349847,0.002,4233.2,4233.1,9.70445119]
[1754797350889,0.002,4233.2,4233.1,7.9327]
[1754797351092,0.002,4233.2,4233.1,9.70445119]
[1754797352476,0.002,4233.2,4233.1,7.9327]
[1754797352680,0.002,4233.2,4233.1,3.55]
[1754797352876,0.002,4233.2,4233.1,7.445]
[1754797353047,0.002,4233.2,4233.1,9.21675119]
[1754797353552,0.002,4233.2,4233.1,9.69945119]
[1754797353753,0.002,4233.2,4233.1,10.14855119]
[1754797354678,0.002,4233.2,4233.1,10.26695119]
[1754797356685,0.002,4233.2,4233.1,18.45940398]
[1754797357057,0.002,4233.7,4233.5,0.55]
[1754797357284,0.002,4233.7,4233.6,17.52339474]
[1754797357490,0.002,4233.7,4233.6,18.45519474]
[1754797358703,0.002,4234.1,4233.9,12.43787029]
[1754797358901,0.002,4234.1,4233.9,19.32687029]
[1754797359061,0.002,4234.1,4233.9,20.37707029]
[1754797361282,0.002,4234.1,4233.9,16.48807029]
[1754797361464,0.002,4234.1,4233.9,16.03897029]
[1754797361906,0.459,4234.0,4233.9,7.0054]
[1754797362516,0.459,4234.0,4233.9,6.886]
[1754797363309,0.002,4234.0,4233.9,6.886]
[1754797363797,0.459,4234.0,4233.9,6.886]
[1754797364915,0.002,4234.0,4233.9,9.20741642]
[1754797365094,0.002,4234.0,4233.9,10.13921642]
[1754797367812,0.002,4234.0,4233.9,9.68711642]
[1754797368185,0.002,4234.0,4233.9,9.68611642]
[1754797368590,0.002,4234.0,4233.9,10.14111642]
[1754797370405,1e-08,4234.9,4234.1,0.55]
[1754797370604,1e-08,4234.9,4234.8,15.55589382]
[1754797370912,1e-08,4234.9,4234.8,19.43589382]
[1754797371110,0.002,4235.0,4234.9,1.77099813]
[1754797371308,0.04,4235.9,4235.8,1.77062184]
[1754797371508,0.04,4235.9,4235.8,9.79732184]
[1754797372796,0.04,4235.9,4235.8,7.5484]
[1754797373111,0.04,4235.9,4235.8,9.31902184]
[1754797374043,0.04,4235.9,4235.8,7.5484]
[1754797374929,0.04,4235.9,4235.8,8.0267]
[1754797375133,0.04,4235.9,4235.8,9.79732184]
[1754797376527,0.04,4235.9,4235.8,10.25232184]
[1754797377301,0.04,4235.9,4235.8,9.79732184]
[1754797378342,0.04,4235.9,4235.8,10.25232184]
[1754797378630,0.04,4235.9,4235.8,9.31202184]
[1754797378809,0.04,4235.9,4235.8,9.79032184]
[1754797380442,0.04,4235.9,4235.8,7.5404]
[1754797380599,0.04,4235.9,4235.8,9.31102184]
[1754797380806,0.04,4235.9,4235.8,7.5404]
[1754797381034,0.04,4235.9,4235.8,9.31102184]
[1754797381231,0.04,4235.9,4235.8,7.5404]
[1754797381738,0.04,4235.9,4235.8,9.31102184]
[1754797382434,0.04,4235.9,4235.8,9.78932184]
[1754797382635,0.04,4235.9,4235.8,10.02622184]
[1754797382835,0.04,4235.9,4235.8,8.0187]
[1754797383010,0.04,4235.9,4235.8,7.5384]
[1754797383210,0.04,4235.9,4235.8,9.30902184]
[1754797383906,0.04,4235.9,4235.8,9.78732184]
[1754797384742,0.04,4235.9,4235.8,17.97021574]
[1754797385237,0.04,4235.9,4235.8,18.42521574]
[1754797385805,0.002,4236.8,4236.0,0.55]
[1754797386044,0.002,4236.8,4236.7,11.7328939]
[1754797386338,0.002,4236.8,4236.7,15.7182939]
[1754797386339,1.77220392,4236.8,4236.7,15.7182939]
[1754797386506,1.77220392,4236.8,4236.7,7.417]
[1754797386909,2.39850392,4236.8,4236.7,7.417]
[1754797387209,0.4679,4236.8,4236.7,4.417]
[1754797387514,0.4679,4236.8,4236.7,12.7182939]
[1754797388334,0.002,4236.8,4236.7,17.96683961]
[1754797388707,0.002,4236.8,4236.7,18.42183961]
[1754797388908,0.002,4236.8,4236.7,18.51627361]
[1754797389643,0.002,4236.8,4236.7,13.71597361]
[1754797389840,0.002,4236.8,4236.7,15.8097279]
[1754797390046,0.002,4236.8,4236.7,11.9457279]
[1754797390220,0.002,4236.8,4236.7,15.7152939]
[1754797390545,0.002,4236.8,4236.7,17.48553961]
[1754797390748,0.002,4236.8,4236.7,17.96383961]
[1754797390946,0.002,4236.8,4236.7,17.84543961]
[1754797391119,0.002,4236.8,4236.7,18.41883961]
[1754797392412,0.002,4236.8,4236.7,17.57896861]
[1754797392844,0.002,4236.8,4236.7,17.48453961]
[1754797393336,0.002,4236.8,4236.7,17.96283961]
[1754797394245,0.002,4236.8,4236.7,18.41783961]
[1754797394747,0.002,4237.2,4237.1,2.32007859]
[1754797394961,0.002,4237.2,4237.1,17.38757353]
[1754797395245,0.002,4237.3,4237.2,5.32003681]
[1754797395448,0.002,4237.3,4237.2,6.25333681]
[1754797395646,0.04,4237.9,4237.2,4.4833]
[1754797395853,0.04,4237.9,4237.8,10.5026801]
[1754797396161,0.5059,4238.9,4238.6,0.55]
[1754797396346,0.5059,4238.9,4238.8,8.7328939]
[1754797396553,2.43562694,4238.9,4238.8,3.859]
[1754797397046,2.27522694,4238.9,4238.8,3.859]
[1754797397236,0.5059,4238.9,4238.8,12.5918939]
[1754797397547,0.5059,4238.9,4238.8,13.97796258]
[1754797397548,0.04,4238.9,4238.8,13.97796258]
[1754797397752,0.04,4238.9,4238.8,11.8504939]
[1754797397949,0.04,4238.9,4238.8,15.7084939]
[1754797398120,0.04,4238.9,4238.8,3.6676]
[1754797398317,0.4774,4238.9,4238.8,7.408]
[1754797399347,0.04,4238.9,4238.8,7.408]
[1754797399516,0.4774,4238.9,4238.8,7.5246]
[1754797401549,0.4774,4238.9,4238.8,3.0]
[1754797401725,2.40712694,4238.9,4238.8,3.855]
[1754797401925,0.6378,4238.9,4238.8,3.855]
[1754797402356,2.40712694,4238.9,4238.8,3.855]
[1754797402554,2.40712694,4238.9,4238.3,0.1176]
[1754797402555,0.6378,4238.9,4238.3,0.1176]
[1754797402762,1.76949392,4238.5,4238.4,3.854]
[1754797402933,0.4374,4238.5,4238.4,3.854]
[1754797403548,2.20689392,4238.5,4238.4,3.854]
[1754797403749,1.76953567,4238.4,4238.3,11.7328939]
[1754797403953,0.4374,4238.4,4238.3,7.404]
[1754797404240,2.20693567,4238.4,4238.3,3.0]
[1754797404749,2.20693567,4238.4,4238.3,6.853]
[1754797405241,2.20693567,4238.4,4238.3,3.0]
[1754797405442,2.20693567,4238.4,4238.3,6.853]
[1754797405443,2.32453567,4238.4,4238.3,6.853]
[1754797406358,2.32453567,4238.4,4238.3,3.853]
[1754797406533,1.76957742,4238.3,4236.9,8.1828939]
[1754797406729,1.76986772,4237.7,4237.3,8.1828939]
[1754797406961,0.4374,4237.6,4237.4,6.852]
[1754797407336,1.76986772,4237.7,4237.4,6.852]
[1754797407538,1.76979767,4237.8,4237.4,3.852]
[1754797407853,2.20719474,4237.8,4237.5,3.55]
[1754797408040,0.04,4238.9,4237.7,3.0]
[1754797408242,0.4374,4238.8,4238.5,3.0]
[1754797408451,0.04,4238.9,4238.6,3.851]
[1754797408758,0.04,4238.9,4238.7,3.851]
[1754797410249,0.04,4238.9,4238.8,8.7328939]
[1754797412154,0.04,4238.9,4238.8,13.50226258]
[1754797412460,0.04,4238.9,4238.8,3.55]
[1754797412649,0.04,4238.9,4238.8,5.31936868]
[1754797412855,0.04,4238.9,4238.8,5.79506868]
[1754797413251,0.04,4238.9,4238.8,4.0257]
[1754797413433,0.04,4238.9,4238.8,5.79506868]
[1754797414565,0.04,4238.9,4238.8,6.24356868]
[1754797416070,0.042,4238.9,4238.8,6.24356868]
[1754797416552,0.042,4238.9,4238.8,6.36116868]
[1754797417667,0.042,4238.9,4238.8,5.91266868]
[1754797417974,0.042,4238.9,4238.8,9.28296868]
[1754797418539,0.042,4238.9,4238.8,9.75866868]
[1754797419249,0.042,4238.9,4238.8,10.20716868]
[1754797421645,0.042,4238.9,4238.8,9.75466868]
[1754797422077,0.042,4238.9,4238.8,10.20316868]
[1754797423038,0.042,4238.9,4238.8,5.91266868]
[1754797423263,0.042,4238.9,4238.8,10.20216868]
[1754797425146,0.042,4238.9,4238.8,9.27796868]
[1754797425472,0.042,4238.9,4238.8,10.20216868]
[1754797426467,0.04,4239.9,4239.8,13.50184526]
[1754797426670,0.04,4239.9,4239.8,17.34084526]
[1754797426971,0.4774,4239.9,4239.8,15.0218939]
[1754797427278,0.4774,4239.9,4239.8,6.839]
[1754797427639,0.4774,4239.9,4239.8,15.0218939]
[1754797428267,0.4774,4239.9,4239.8,6.839]
[1754797428474,0.6378,4239.9,4239.8,6.839]
[1754797428777,2.40670964,4239.9,4239.8,3.0]
[1754797429243,1.76895136,4239.8,4239.7,6.837]
[1754797429449,1.76895136,4239.8,4239.7,3.837]
[1754797429450,0.7079,4239.8,4239.7,3.837]
[1754797429778,0.7079,4239.8,4238.7,0.1176]
[1754797429779,1.76920065,4239.3,4238.7,0.1176]
[1754797429979,1.76924148,4239.2,4238.8,3.836]
[1754797430273,0.4299,4239.1,4238.8,3.836]
[1754797430474,1.7692852,4239.0,4238.9,3.836]
[1754797430642,1.76941656,4238.7,4238.5,8.1828939]
[1754797430958,1.76938071,4238.8,4238.7,3.0]
[1754797431136,1.76938071,4238.8,4238.7,3.836]
[1754797431341,0.1176,4239.0,4238.7,3.836]
[1754797431543,0.4299,4238.9,4238.7,3.836]
[1754797431743,0.4299,4238.8,4238.7,3.836]
[1754797433855,2.19926868,4238.8,4238.7,3.836]
[1754797434056,0.4299,4238.8,4238.7,3.836]
[1754797434268,2.19926868,4238.8,4238.7,3.836]
[1754797434784,0.4299,4238.8,4238.6,3.0]
[1754797434984,1.76939979,4238.8,4238.7,3.834]
[1754797435551,2.19929979,4238.8,4238.7,3.834]
[1754797435971,1.76948585,4238.6,4238.4,0.55]
[1754797436215,1.76949392,4238.5,4238.4,0.55]
[1754797436377,1.76949392,4238.5,4238.4,7.383]
[1754797436586,2.19939392,4238.5,4238.4,6.833]
[1754797436963,2.19939392,4238.5,4238.4,3.0]
[1754797437165,2.19939392,4238.5,4238.4,6.832]
[1754797437351,0.4299,4238.5,4237.9,0.001]
[1754797437550,1.76913974,4239.4,4237.9,0.001]
[1754797437551,1.88724845,4238.2,4238.0,3.832]
[1754797437764,2.19956093,4238.1,4238.0,3.832]
[1754797440106,0.4299,4238.1,4238.0,3.832]
[1754797440312,1.88722437,4238.2,4238.0,3.832]
[1754797440618,0.1176,4238.2,4238.1,3.55]
[1754797440795,0.4299,4239.1,4238.1,3.55]
[1754797440796,0.1176,4239.1,4238.2,2.31961834]
[1754797440982,2.1991852,4239.0,4238.4,3.55]
[1754797441185,0.4299,4239.0,4238.6,3.0]
[1754797441409,0.4299,4239.0,4238.8,3.0]
[1754797441613,0.4299,4239.0,4238.9,3.83]
[1754797441834,1.7692852,4239.0,4238.9,3.83]
[1754797442119,2.1991852,4239.0,4238.9,3.83]
[1754797445099,1.76936868,4238.8,4238.2,8.1828939]
[1754797445396,0.1176,4238.5,4238.4,3.0]
[1754797445593,0.1176,4238.5,4238.4,3.828]
[1754797446025,0.1176,4238.5,4238.1,3.0]
[1754797446026,0.5475,4238.5,4238.1,3.0]
[1754797446205,1.76950773,4238.5,4238.3,3.0]
[1754797446515,0.5475,4238.4,4238.1,3.0]
[1754797446705,0.1176,4238.4,4238.1,3.0]
[1754797447078,1.88713567,4238.4,4238.3,3.0]
[1754797447680,1.76970268,4238.0,4237.9,0.001]
[1754797447886,1.88726227,4238.1,4238.0,3.0]
[1754797448097,2.31716227,4238.1,4238.0,3.826]
[1754797448311,1.76970268,4238.0,4237.9,0.001]
[1754797448512,1.76970268,4238.0,4237.9,6.827]
[1754797448713,1.76970268,4238.0,4237.9,3.827]
[1754797448912,2.19960268,4238.0,4237.9,3.827]
[1754797449113,2.19960268,4238.0,4237.9,0.001]
[1754797451901,0.1176,4238.1,4237.9,0.4532]
[1754797452102,0.1176,4238.1,4238.0,0.4522]
[1754797452820,0.1176,4238.1,4237.9,0.001]
[1754797452821,1.76970268,4238.0,4237.9,0.001]
[1754797452991,2.19960268,4238.0,4237.9,0.001]
[1754797453184,0.1176,4238.1,4237.9,0.001]
[1754797453387,0.4299,4238.7,4238.0,12.0068939]
[1754797453588,2.19914347,4239.1,4238.1,5.22182672]
[1754797453816,0.002,4239.4,4238.4,8.1828939]
[1754797453817,0.4299,4239.3,4238.4,8.1828939]
[1754797454018,1.76932518,4239.0,4238.5,4.2752]
[1754797454234,1.76920173,4239.2,4238.5,3.823]
[1754797454235,1.76945217,4238.6,4238.5,3.823]
[1754797454885,1.76945217,4238.6,4238.5,4.2752]
[1754797457044,1.76941867,4238.7,4238.5,4.2752]
[1754797457197,1.76941867,4238.7,4238.5,3.823]
[1754797457535,1.76941867,4238.7,4238.6,0.9553]
[1754797458334,1.76941867,4238.7,4238.6,0.4803]
[1754797458935,1.76949392,4238.5,4238.4,8.1828939]
[1754797459132,1.76761037,4238.5,4238.4,12.0038939]
[1754797459335,1.76761037,4238.5,4238.4,12.4841939]
[1754797460103,1.76761037,4238.5,4238.4,12.0038939]
[1754797460728,1.76761037,4238.5,4238.4,12.4841939]
[1754797461655,1.76761037,4238.5,4238.4,12.9591939]
[1754797462154,1.76761037,4238.5,4238.4,12.4841939]
[1754797463266,1.76949583,4238.5,4238.4,3.818]
[1754797463422,1.76956306,4238.4,4238.0,3.4813]
[1754797463623,1.76958405,4238.3,4238.0,0.001]
[1754797463860,1.76958405,4238.3,4238.2,3.0]
[1754797464033,1.76958405,4238.3,4238.2,3.817]
[1754797464242,1.76958405,4238.3,4238.2,4.2973]
[1754797465326,0.1176,4238.5,4238.2,4.2973]
[1754797465645,0.1176,4238.5,4238.3,8.6631939]
[1754797465646,1.76956314,4238.4,4238.3,8.6631939]
[1754797465849,1.76957742,4238.3,4238.2,6.817]
[1754797466760,1.76957742,4238.3,4238.2,6.816]
[1754797466928,1.76957742,4238.3,4238.2,3.0]
[1754797467129,2.23677742,4238.3,4238.2,6.815]
[1754797467325,2.23677742,4238.3,4238.0,0.001]
[1754797467326,1.76966093,4238.1,4238.0,0.001]
[1754797467549,1.88726093,4238.1,4238.0,0.001]
[1754797467740,2.35446093,4238.1,4238.0,0.001]
[1754797469027,2.35446093,4238.1,4237.9,0.001]
[1754797469028,1.76970268,4238.0,4237.9,1e-08]
[1754797469251,2.23690268,4238.0,4237.9,1e-08]
[1754797470260,2.39730268,4238.0,4237.9,1e-08]
[1754797471559,2.39730268,4238.0,4237.1,0.001]
[1754797471560,1.77003681,4237.2,4237.1,0.001]
[1754797471947,2.51603681,4237.2,4237.1,1e-08]
[1754797472124,2.51603681,4237.2,4237.0,1e-08]
[1754797472125,1.77007859,4237.1,4237.0,1e-08]
[1754797472333,6.21067859,4237.1,4237.0,1e-08]
[1754797472534,6.05027859,4237.1,4237.0,1e-08]
[1754797474954,6.21067859,4237.1,4237.0,1e-08]
[1754797475274,2.483,4236.9,4233.3,0.4803]
[1754797475567,8.8706,4237.1,4233.7,0.4813]
[1754797475568,3.0,4235.9,4233.7,0.4813]
[1754797475766,3.0,4235.7,4234.3,8.1828939]
[1754797476060,0.1184,4234.5,4234.4,2.13348475]
[1754797476563,0.1184,4234.5,4234.4,0.9553]
[1754797479470,0.1184,4234.5,4234.4,2.72650725]